bitfinex/quotes_SOLUSD_20260213
["timestamp","ask_amount","ask_price","bid_price","bid_amount"]
[1770951988112,0.77558202,79.069,79.041,12.65166179]
[1770951991737,0.77558202,79.069,79.042,0.64373703]
[1770951992737,0.86908296,79.086,79.051,0.64450228]
[1770951993119,0.86908296,79.086,79.06,10.57537746]
[1770951993324,0.86908296,79.086,79.061,12.64846131]
[1770951993930,0.88558521,79.084,79.05,10.57537746]
[1770951994330,0.88558521,79.084,79.044,12.65118162]
[1770951995017,0.88558521,79.084,79.05,10.57537746]
[1770951996126,0.88558521,79.084,79.051,12.65006135]
[1770951996941,4.61729252,79.101,79.044,12.65118162]
[1770951996942,0.88558521,79.079,79.044,12.65118162]
[1770951998240,12.64574217,79.078,79.044,12.65118162]
[1770951998567,0.88558521,79.077,79.044,12.65118162]
[1770951999352,0.88558521,79.077,79.051,0.65028835]
[1770952002329,0.88558521,79.077,79.052,13.3022176]
[1770952002642,0.88558521,79.077,79.053,0.65231627]
[1770952004650,0.88558521,79.077,79.054,12.64958129]
[1770952005060,0.88558521,79.075,79.041,0.65362004]
[1770952005233,0.88558521,79.075,79.04,23.22719932]
[1770952005723,0.88558521,79.069,79.04,12.65182186]
[1770952006030,0.88558521,79.069,79.03,10.57537746]
[1770952006031,0.88558521,79.059,79.017,12.65550451]
[1770952006225,0.88558521,79.059,79.02,10.57537746]
[1770952006427,0.88558521,79.059,79.02,54.34]
[1770952006646,0.88558521,79.049,79.013,31.64029731]
[1770952007047,0.88558521,79.049,79.02,10.57537746]
[1770952007547,0.88558521,79.049,79.014,0.65490177]
[1770952008521,0.88558521,79.049,79.02,10.57537746]
[1770952008730,50.55595517,79.121,79.012,54.34]
[1770952008731,0.88558521,79.066,79.031,0.65614917]
[1770952009345,0.88558521,79.066,79.033,0.6567659]
[1770952010866,0.88558521,79.065,79.034,13.31015]
[1770952011040,0.88558521,79.065,79.034,12.65278234]
[1770952011837,10.57537746,79.06,79.034,12.65278234]
[1770952012057,12.64777164,79.066,79.021,12.65482536]
[1770952012058,0.88558521,79.049,79.021,12.65482536]
[1770952012951,0.88558521,79.047,79.015,12.65582484]
[1770952015157,0.88558521,79.047,79.016,0.66032087]
[1770952015350,0.88558521,79.047,79.021,0.66032087]
[1770952016158,0.88558521,79.054,79.021,0.66032087]
[1770952018164,0.88558521,79.054,79.023,0.66202215]
[1770952018564,0.88558521,79.052,79.022,12.65470375]
[1770952019975,0.88558521,79.049,79.018,12.65528801]
[1770952020277,10.57537746,79.04,79.014,54.36]
[1770952020446,0.87788962,79.029,79.008,12.65688856]
[1770952020646,0.87788962,79.029,78.99,10.57537746]
[1770952020886,0.87788962,79.019,78.986,12.66035764]
[1770952021680,0.87788962,79.009,78.98,12.76133334]
[1770952021851,0.87788962,79.009,78.981,0.66418743]
[1770952022245,0.87788962,79.009,78.982,12.66111265]
[1770952023352,0.87788962,79.009,78.98,0.1]
[1770952023849,0.87788962,78.999,78.98,0.1]
[1770952024460,0.87788962,78.997,78.98,0.1]
[1770952025259,0.87788962,78.997,78.97,0.1]
[1770952025459,0.87788962,78.979,78.951,12.66608402]
[1770952025970,0.87788962,78.979,78.946,12.66681385]
[1770952026471,0.87788962,78.977,78.946,12.66681385]
[1770952026666,0.87788962,78.977,78.938,55.26121746]
[1770952026667,0.87788962,78.969,78.938,54.44]
[1770952026873,0.87788962,78.969,78.899,50.69754526]
[1770952026874,0.87788962,78.959,78.92,10.67537746]
[1770952027074,0.87788962,78.949,78.921,12.67089874]
[1770952027457,0.87788962,78.949,78.921,44.3481456]
[1770952027674,0.87788962,78.949,78.921,12.67089874]
[1770952028357,0.87788962,78.949,78.92,0.1]
[1770952028358,0.87788962,78.939,78.92,0.1]
[1770952028551,0.87788962,78.937,78.92,0.1]
[1770952028773,0.87788962,78.929,78.907,12.67314686]
[1770952029078,0.87788962,78.939,78.908,0.82121746]
[1770952029574,0.87788962,78.939,78.907,12.67314686]
[1770952029972,0.87788962,78.939,78.908,0.82121746]
[1770952030176,0.87788962,78.979,78.931,0.82121746]
[1770952030479,0.87788962,78.979,78.94,11.39659492]
[1770952030773,0.87788962,78.969,78.941,12.66768852]
[1770952031158,0.87788962,78.969,78.941,13.48890598]
[1770952031351,0.87788962,78.969,78.941,12.66768852]
[1770952032282,10.57537746,78.98,78.941,12.66768852]
[1770952032283,0.87788962,78.977,78.942,0.82121746]
[1770952032979,0.87788962,78.977,78.941,54.52]
[1770952033556,0.87788962,78.977,78.942,12.66752805]
[1770952033755,0.87788962,78.977,78.943,0.82121746]
[1770952035869,10.58112965,78.97,78.945,0.82121746]
[1770952036072,0.87788962,78.977,78.945,0.82121746]
[1770952036278,0.87788962,78.985,78.945,0.82121746]
[1770952036685,10.58112965,78.98,78.945,0.82121746]
[1770952037293,10.58112965,78.98,78.947,0.82121746]
[1770952038261,11.45901927,78.98,78.949,0.82121746]
[1770952038656,11.45901927,78.98,78.95,10.58112965]
[1770952038865,11.45901927,78.98,78.951,0.82121746]
[1770952039869,0.87788962,78.989,78.951,0.82121746]
[1770952040069,0.87788962,78.989,78.953,0.82121746]
[1770952040267,0.87788962,78.989,78.955,0.82121746]
[1770952040976,0.87788962,79.002,78.961,0.82121746]
[1770952041283,11.45901927,79.01,78.971,0.82121746]
[1770952041579,0.87788962,79.017,78.981,0.82121746]
[1770952041763,0.87788962,79.017,78.98,10.58112965]
[1770952041764,0.87788962,79.017,78.983,0.82121746]
[1770952042364,0.87788962,79.017,78.985,0.82121746]
[1770952042559,0.87788962,79.017,78.982,54.64]
[1770952042560,0.87788962,78.999,78.982,54.64]
[1770952043867,0.87788962,78.999,78.975,12.66218766]
[1770952044483,0.87788962,78.999,78.969,12.66319695]
[1770952044784,0.87788962,78.999,78.969,44.32118932]
[1770952045970,0.87788962,78.999,78.971,0.82121746]
[1770952046171,0.87788962,78.999,78.969,44.32118932]
[1770952046779,0.87788962,78.989,78.965,12.66380799]
[1770952047087,0.87788962,79.023,78.981,0.26926758]
[1770952047276,0.87788962,79.019,78.99,10.58112965]
[1770952047677,0.87788962,79.019,78.991,0.26926758]
[1770952047877,0.87788962,79.029,78.991,0.26926758]
[1770952048195,0.87788962,79.029,79.0,10.58112965]
[1770952048380,0.87788962,79.029,79.001,0.2706564]
[1770952048568,0.87788962,79.029,79.002,55.0506564]
[1770952049174,0.87788962,79.029,79.003,12.65774717]
[1770952049380,0.87788962,79.029,79.003,67.41774717]
[1770952049593,0.87788962,79.029,79.003,12.65774717]
[1770952049794,0.87788962,79.029,79.003,67.41774717]
[1770952050973,10.58112965,79.04,79.004,0.27468421]
[1770952051172,10.58112965,79.04,79.011,0.2759783]
[1770952051375,0.84262956,79.039,79.012,54.76]
[1770952052272,0.84262956,79.039,79.013,54.78]
[1770952052473,0.84262956,79.039,79.014,12.65598501]
[1770952053075,0.84262956,79.046,79.015,0.2772744]
[1770952053394,0.84262956,79.046,79.017,0.27978399]
[1770952053880,0.84262956,79.046,79.016,54.78]
[1770952053881,11.62723808,79.06,79.021,0.27978399]
[1770952054292,11.62723808,79.06,79.023,0.28101942]
[1770952054478,11.62723808,79.06,79.025,0.28101942]
[1770952054675,11.62723808,79.06,79.024,44.29034216]
[1770952054676,11.62723808,79.06,79.027,0.28101942]
[1770952054998,0.84610843,79.059,79.027,0.28101942]
[1770952056406,0.84610843,79.059,79.026,54.8]
[1770952056407,0.84610843,79.039,79.015,12.65582484]
[1770952056695,0.84610843,79.039,79.016,54.78]
[1770952058406,0.84610843,79.039,79.017,12.65550451]
[1770952062694,0.2,79.06,79.018,0.29044138]
[1770952062695,0.84610843,79.049,79.018,0.29044138]
[1770952062993,0.2,79.06,79.021,0.29044138]
[1770952063295,10.78112965,79.06,79.021,0.29044138]
[1770952064077,11.62723808,79.06,79.021,0.29044138]
[1770952064297,0.84610843,79.059,79.021,0.29044138]
[1770952064678,0.84610843,79.059,79.023,0.29264848]
[1770952065007,0.84610843,79.059,79.022,54.92]
[1770952065008,0.84610843,79.059,79.025,0.29264848]
[1770952065179,10.78112965,79.06,79.025,0.29264848]
[1770952065496,0.2,79.06,79.031,0.29373721]
[1770952065677,0.2,79.06,79.04,10.87486686]
[1770952066274,1.04610843,79.06,79.041,54.94]
[1770952066478,1.04610843,79.06,79.027,0.83516431]
[1770952066479,10.78112965,79.06,79.027,0.83516431]
[1770952066680,0.2,79.06,79.031,0.83516431]
[1770952067195,0.2,79.06,79.03,10.58112965]
[1770952067196,0.2,79.06,79.033,0.83516431]
[1770952067601,0.2,79.06,79.041,0.83516431]
[1770952068579,1e-08,79.06,79.043,0.83516431]
[1770952068895,1e-08,79.06,79.045,0.83516431]
[1770952069110,1e-08,79.06,79.046,13.48602583]
[1770952069296,1e-08,79.06,79.047,0.83516431]
[1770952069604,1e-08,79.06,79.046,12.65086152]
[1770952069605,0.84610843,79.079,79.051,0.83516431]
[1770952070498,0.84610843,79.079,79.052,12.64990133]
[1770952070682,0.84610843,79.079,79.053,0.83516431]
[1770952071000,0.84610843,79.079,79.052,12.64990133]
[1770952071886,0.84610843,79.069,79.049,54.96]
[1770952072904,0.84610843,79.069,79.049,67.61029061]
[1770952073289,0.84610843,79.078,79.05,0.83516431]
[1770952073792,0.84610843,79.078,79.051,54.98]
[1770952074295,0.84610843,79.087,79.052,0.83516431]
[1770952074500,0.84610843,79.093,79.061,0.83516431]
[1770952074682,0.84610843,79.093,79.063,0.83516431]
[1770952075088,10.58112965,79.09,79.063,0.83516431]
[1770952075300,0.84610843,79.089,79.063,0.83516431]
[1770952075602,0.84610843,79.089,79.054,12.6494802]
[1770952075803,0.84610843,79.079,79.055,55.02]
[1770952076506,0.84610843,79.069,79.055,55.02]
[1770952078204,0.84610843,79.069,79.048,12.65050204]
[1770952080796,0.84610843,79.069,79.048,13.58584977]
[1770952080992,0.89363415,79.076,79.049,0.93534773]
[1770952081384,0.89363415,79.076,79.046,55.02]
[1770952081711,0.89363415,79.069,79.046,55.02]
[1770952081913,0.89363415,79.076,79.048,0.93534773]
[1770952082101,12.64500733,79.083,79.051,0.93534773]
[1770952082301,0.89363415,79.082,79.051,0.93534773]
[1770952083007,0.89363415,79.079,79.046,55.02]
[1770952083199,0.89363415,79.069,79.046,55.02]
[1770952083513,0.89363415,79.059,79.04,55.06]
[1770952084312,0.89363415,79.059,79.04,54.11179711]
[1770952084519,0.65642964,79.049,79.03,12.65341341]
[1770952085521,0.65642964,79.049,79.023,0.93534773]
[1770952085717,0.65642964,79.049,79.029,55.1]
[1770952086025,0.65914884,79.058,79.029,56.03534773]
[1770952087018,3.94040916,79.05,79.029,55.1]
[1770952087318,4.60490409,79.05,79.029,55.1]
[1770952087516,0.66449493,79.049,79.029,55.1]
[1770952087698,12.64910128,79.057,79.01,3.94040916]
[1770952087699,0.66449493,79.039,79.02,12.65495925]
[1770952088301,0.66449493,79.039,79.016,67.77565588]
[1770952089121,3.94040916,79.04,78.991,12.65967008]
[1770952089122,12.65358286,79.029,78.991,12.65967008]
[1770952089322,3.94040916,79.03,78.993,0.95455728]
[1770952090006,3.94040916,79.02,78.993,0.95455728]
[1770952091114,3.94040916,79.01,78.992,55.12]
[1770952091421,12.65518419,79.019,78.978,12.66169116]
[1770952091422,3.94040916,79.0,78.978,12.66169116]
[1770952091608,3.94040916,78.99,78.966,12.66354274]
[1770952091812,44.29314468,79.019,78.959,12.66480071]
[1770952091813,3.94040916,78.98,78.959,12.66480071]
[1770952092127,3.94040916,78.99,78.96,0.95455728]
[1770952093133,10.57879038,78.98,78.96,0.95455728]
[1770952094922,10.57879038,78.98,78.959,55.22]
[1770952095106,10.57879038,78.97,78.959,55.22]
[1770952095301,10.57879038,78.97,78.954,12.66557506]
[1770952095505,10.57879038,78.96,78.949,12.66633521]
[1770952095809,10.5998666,78.97,78.949,12.66633521]
[1770952096321,10.5998666,78.97,78.948,55.22]
[1770952096908,10.5998666,78.97,78.949,12.66640489]
[1770952098212,0.02107622,78.97,78.949,12.66640489]
[1770952098517,10.5998666,78.97,78.949,12.66640489]
[1770952099225,31.64767253,78.995,78.949,13.62096217]
[1770952099423,10.57879038,78.97,78.949,13.62096217]
[1770952099623,10.57879038,78.97,78.95,0.95455728]
[1770952099828,10.61119842,78.99,78.952,0.95455728]
[1770952100021,10.61119842,78.99,78.954,0.95455728]
[1770952100907,0.03515521,78.989,78.954,0.95455728]
[1770952101120,10.57879038,78.98,78.954,0.95455728]
[1770952101430,10.57879038,78.98,78.956,0.95455728]
[1770952101616,10.57879038,78.98,78.958,0.95455728]
[1770952102419,0.04056161,79.012,78.958,0.95455728]
[1770952102724,10.57879038,79.0,78.958,0.95455728]
[1770952102922,10.57879038,78.99,78.958,0.95455728]
[1770952103321,0.04056161,78.999,78.958,0.95455728]
[1770952103919,10.57879038,78.99,78.96,0.95455728]
[1770952104128,10.57879038,78.99,78.962,0.95455728]
[1770952105333,0.04056161,78.999,78.964,0.95455728]
[1770952106225,0.05101747,79.009,78.964,0.95455728]
[1770952106617,0.05101747,79.009,78.971,0.95455728]
[1770952107323,0.05101747,79.009,78.973,0.95455728]
[1770952110332,0.05101747,79.009,78.974,13.61695249]
[1770952110635,0.05101747,79.009,78.975,0.95455728]
[1770952110949,10.57879038,78.99,78.941,0.95455728]
[1770952111241,4.61729252,79.007,78.943,0.95455728]
[1770952111242,0.0634194,78.979,78.943,0.95455728]
[1770952111445,0.06582601,78.969,78.942,55.38]
[1770952111740,0.06582601,78.969,78.934,13.62336919]
[1770952111741,0.06582601,78.959,78.936,55.4]
[1770952112318,0.06582601,78.959,78.928,0.95455728]
[1770952112537,0.06582601,78.959,78.93,0.95455728]
[1770952114233,0.06582601,78.959,78.932,0.95455728]
[1770952114432,23.31697445,78.97,78.932,0.95455728]
[1770952114835,0.07512927,78.969,78.932,0.95455728]
[1770952115427,0.07738595,78.968,78.932,0.95455728]
[1770952116243,0.07961346,78.979,78.941,0.95455728]
[1770952116541,0.07961346,78.979,78.943,0.95455728]
[1770952117124,0.07961346,78.979,78.944,55.46]
[1770952117337,0.07961346,78.979,78.945,0.95455728]
[1770952117748,0.07961346,78.979,78.947,0.95455728]
[1770952118626,0.07961346,78.979,78.949,0.95455728]
[1770952119028,0.08398523,78.994,78.961,0.95455728]
[1770952119543,0.08613523,78.989,78.961,0.95455728]
[1770952122032,0.08613523,78.989,78.963,0.95455728]
[1770952122943,0.08613523,78.989,78.955,0.95455728]
[1770952123648,3.95120877,79.01,78.961,0.95455728]
[1770952123845,3.95120877,79.01,78.951,44.33129408]
[1770952123846,0.09450445,79.019,78.981,0.95455728]
[1770952124353,0.09652689,79.018,78.983,0.95455728]
[1770952125471,0.09854204,78.999,78.963,12.66415916]
[1770952126535,0.10052531,78.998,78.963,12.66415916]
[1770952130052,31.64284116,79.007,78.964,0.95455728]
[1770952130053,0.10635804,79.006,78.964,0.95455728]
[1770952130253,0.10824966,79.019,78.98,3.95120877]
[1770952130457,3.95120877,79.02,78.963,44.32455706]
[1770952130458,0.10824966,79.029,78.991,0.95455728]
[1770952130658,0.10824966,79.044,79.011,0.95455728]
[1770952131762,0.1101263,79.052,79.013,0.95455728]
[1770952131962,0.1101263,79.052,79.014,0.95455728]
[1770952133867,0.11378274,79.066,79.031,0.95455728]
[1770952134049,0.11378274,79.066,79.033,0.95455728]
[1770952134260,0.11378274,79.066,79.04,10.56134619]
[1770952134447,0.11378274,79.066,79.041,0.95455728]
[1770952134846,0.11556865,79.059,79.032,55.52]
[1770952135867,0.11734516,79.058,79.032,55.52]
[1770952136764,0.11734516,79.058,79.032,56.47455728]
[1770952136965,0.11734516,79.058,79.033,0.95455728]
[1770952137171,0.12085111,79.079,79.041,0.95455728]
[1770952137673,1e-08,79.08,79.061,0.95455728]
[1770952137871,1e-08,79.08,79.061,55.54]
[1770952138179,1e-08,79.08,79.061,68.18844019]
[1770952138469,1e-08,79.08,79.061,12.64844019]
[1770952140348,0.12595001,79.079,79.052,55.6]
[1770952140762,1e-08,79.08,79.071,1.00532504]
[1770952142358,1e-08,79.08,79.073,1.00532504]
[1770952142559,1e-08,79.08,79.074,55.66]
[1770952142758,1e-08,79.08,79.072,12.64670174]
[1770952143154,1e-08,79.08,79.072,13.65202678]
[1770952143465,1e-08,79.08,79.073,1.00532504]
[1770952145680,0.2,79.1,79.075,1.00532504]
[1770952145861,0.2,79.1,79.081,1.00532504]
[1770952147062,0.2,79.1,79.082,55.74]
[1770952147263,0.2,79.1,79.083,1.00532504]
[1770952147865,0.2,79.1,79.084,13.6501078]
[1770952149666,1e-08,79.1,79.085,1.00532504]
[1770952150565,1e-08,79.1,79.091,1.00532504]
[1770952151777,0.2,79.12,79.092,1.00532504]
[1770952151980,0.2,79.13,79.111,1.00532504]
[1770952152183,0.2,79.13,79.112,56.88532504]
[1770952152367,0.2,79.13,79.113,1.00532504]
[1770952152566,0.2,79.13,79.114,68.51998786]
[1770952154381,0.2,79.13,79.114,12.63998786]
[1770952154564,0.2,79.13,79.116,12.63966833]
[1770952155390,0.35074231,79.129,79.109,55.88]
[1770952156275,0.35074231,79.129,79.103,55.9]
[1770952156667,0.35074231,79.129,79.104,12.64158576]
[1770952156972,0.2,79.13,79.105,1.00532504]
[1770952157374,0.2,79.13,79.107,1.00532504]
[1770952157575,0.2,79.13,79.109,1.00532504]
[1770952158493,0.2,79.13,79.11,55.9]
[1770952158694,0.2,79.13,79.111,12.64046719]
[1770952158989,0.2,79.13,79.112,1.00532504]
[1770952159197,0.2,79.13,79.113,55.92]
[1770952159494,0.2,79.13,79.114,1.00532504]
[1770952159698,0.2,79.13,79.115,55.92]
[1770952160980,0.2,79.13,79.116,12.63966833]
[1770952161184,0.35957114,79.139,79.105,1.00532504]
[1770952161694,0.35957114,79.146,79.111,1.00532504]
[1770952162709,0.2,79.15,79.131,1.00532504]
[1770952162902,0.2,79.15,79.135,1.00532504]
[1770952163193,0.2,79.15,79.136,56.02]
[1770952163494,0.56236631,79.15,79.136,56.02]
[1770952163900,0.2,79.15,79.134,12.63679328]
[1770952164089,0.2,79.15,79.135,56.02]
[1770952164502,0.36373505,79.149,79.114,1.00532504]
[1770952164799,0.36373505,79.129,79.097,56.04]
[1770952165099,0.36373505,79.109,79.08,56.04]
[1770952165994,0.36373505,79.109,79.081,1.00532504]
[1770952166301,0.36647912,79.119,79.081,1.00532504]
[1770952166480,0.36647912,79.119,79.091,1.00532504]
[1770952167000,0.36647912,79.109,79.082,56.06]
[1770952167701,0.36647912,79.109,79.082,57.06532504]
[1770952168596,13.01009333,79.108,79.083,1.00532504]
[1770952169584,0.37044938,79.107,79.082,56.06]
[1770952169791,0.37044938,79.107,79.073,1.00532504]
[1770952170091,0.37044938,79.107,79.075,1.00532504]
[1770952172003,0.3742831,79.105,79.076,12.64606201]
[1770952172388,0.3742831,79.105,79.076,13.6852578]
[1770952173408,12.64126614,79.106,79.066,56.04]
[1770952173409,0.37675829,79.089,79.066,56.04]
[1770952174309,4.61729252,79.111,79.066,56.04]
[1770952174310,31.59484837,79.127,79.081,1.02342651]
[1770952174605,0.37918247,79.125,79.081,1.02342651]
[1770952175387,0.3803807,79.119,79.081,1.02342651]
[1770952176006,0.3803807,79.119,79.082,56.1]
[1770952176194,0.3803807,79.119,79.083,1.02342651]
[1770952177014,0.38154111,79.117,79.085,1.02342651]
[1770952179810,0.38154111,79.117,79.086,12.64446298]
[1770952180018,0.38154111,79.117,79.087,1.02342651]
[1770952180896,0.38154111,79.117,79.086,12.64446298]
[1770952180897,12.63567556,79.141,79.091,1.04759063]
[1770952181098,4.61729252,79.138,79.101,1.04759063]
[1770952183914,12.63503576,79.146,79.111,1.04759063]
[1770952186112,3.93597327,79.14,79.111,1.04759063]
[1770952186316,3.93597327,79.13,79.102,55.98]
[1770952186616,3.93597327,79.13,79.103,1.04759063]
[1770952187012,3.93597327,79.13,79.104,1.04759063]
[1770952187601,3.93597327,79.13,79.102,55.98]
[1770952188514,12.63759178,79.129,79.102,55.98]
[1770952188906,12.63759178,79.129,79.102,57.02759063]
[1770952189109,12.63759178,79.129,79.103,1.04759063]
[1770952191206,12.6364073,79.137,79.105,1.04759063]
[1770952191621,3.93597327,79.14,79.105,1.04759063]
[1770952192531,12.63599489,79.139,79.105,1.04759063]
[1770952194436,12.63599489,79.139,79.107,1.04759063]
[1770952195824,0.2,79.15,79.111,1.04759063]
[1770952195825,12.63458062,79.148,79.111,1.04759063]
[1770952196031,12.63458062,79.148,79.112,1.04759063]
[1770952196224,12.65510921,79.148,79.114,1.04759063]
[1770952196428,12.65510921,79.148,79.115,1.04759063]
[1770952197118,0.02052859,79.148,79.115,1.04759063]
[1770952198034,0.02168541,79.149,79.115,1.04759063]
[1770952198409,0.02284277,79.139,79.114,56.0]
[1770952199228,0.02284277,79.139,79.107,1.04759063]
[1770952200630,44.41994068,79.15,79.111,1.04759063]
[1770952200631,0.02619609,79.147,79.111,1.04759063]
[1770952201332,0.02729082,79.139,79.111,56.0]
[1770952201512,0.02729082,79.139,79.106,1.04759063]
[1770952201513,0.02729082,79.129,79.104,56.0]
[1770952201719,0.02729082,79.129,79.104,57.04759063]
[1770952201915,0.02729082,79.129,79.104,56.0]
[1770952202122,0.02729082,79.129,79.105,1.04759063]
[1770952202317,0.0283751,79.139,79.105,1.04759063]
[1770952202911,0.0283751,79.138,79.105,1.04759063]
[1770952204437,0.0283751,79.138,79.08,3.93597327]
[1770952204438,0.41658384,79.119,79.08,3.93597327]
[1770952205133,12.63934882,79.118,79.081,12.64526245]
[1770952206237,3.93597327,79.12,79.09,3.93597327]
[1770952206534,12.63864793,79.123,79.09,3.93597327]
[1770952206535,12.63864793,79.123,79.091,0.99170486]
[1770952207134,12.63864793,79.123,79.093,0.99170486]
[1770952207332,12.63757696,79.13,79.101,0.99170486]
[1770952207533,0.42059701,79.129,79.101,0.99170486]
[1770952208126,0.42059701,79.129,79.09,3.93597327]
[1770952208324,0.42190093,79.119,79.091,0.99170486]
[1770952208740,0.42190093,79.119,79.085,56.0]
[1770952208918,0.42190093,79.118,79.084,0.99170486]
[1770952209118,0.42320589,79.116,79.084,0.99170486]
[1770952209722,0.42320589,79.116,79.086,0.99170486]
[1770952210147,12.63950857,79.117,79.078,0.99170486]
[1770952210148,0.42447617,79.109,79.078,0.99170486]
[1770952210356,0.42447617,79.109,79.071,0.99170486]
[1770952210357,3.93597327,79.1,79.071,0.99170486]
[1770952210653,0.42447617,79.099,79.071,0.99170486]
[1770952211430,0.4257381,79.097,79.071,0.99170486]
[1770952213742,0.42821737,79.095,79.071,0.99170486]
[1770952214940,12.64286436,79.096,79.071,0.99170486]
[1770952215262,13.07231345,79.096,79.071,0.99170486]
[1770952215947,0.43065074,79.089,79.065,0.99170486]
[1770952219142,0.43532784,79.079,79.052,0.99170486]
[1770952221736,0.43759943,79.069,79.043,0.99170486]
[1770952226755,0.44307317,79.067,79.043,0.99170486]
[1770952226977,3.93813168,79.06,79.043,0.99170486]
[1770952227181,0.44307317,79.049,79.022,0.99170486]
[1770952228040,0.44412765,79.039,79.013,0.99170486]
[1770952229339,0.446215,79.038,79.013,0.99170486]
[1770952230273,3.93813168,79.04,79.015,0.99170486]
[1770952230436,3.93813168,79.05,79.015,0.99170486]
[1770952230755,3.93813168,79.05,79.001,1.01442471]
[1770952230756,0.44825212,79.045,79.001,1.01442471]
[1770952230934,0.44825212,79.029,79.002,1.01442471]
[1770952231751,0.4492525,79.027,79.002,1.01442471]
[1770952232537,3.93813168,79.02,79.002,1.01442471]
[1770952234157,0.4531339,79.019,79.0,0.1]
[1770952234365,0.4531339,79.009,79.0,0.1]
[1770952234557,3.93813168,79.01,79.0,0.1]
[1770952234855,0.4531339,79.016,79.0,0.1]
[1770952236356,3.93813168,79.01,79.0,0.1]
[1770952237057,3.93813168,79.03,79.001,1.04415154]
[1770952237260,37.46,79.029,79.001,1.04415154]
[1770952237641,38.53998841,79.029,79.001,1.04415154]
[1770952238850,12.65374297,79.028,79.002,12.65790739]
[1770952239048,12.65374297,79.028,79.003,1.04415154]
[1770952239252,37.46,79.029,79.003,1.04415154]
[1770952240565,38.53998841,79.029,79.003,1.04415154]
[1770952241195,3.93813168,79.04,79.005,1.04415154]
[1770952241461,50.57503203,79.091,79.021,1.04415154]
[1770952241462,1.07998841,79.059,79.021,1.04415154]
[1770952241662,3.93813168,79.06,79.021,1.04415154]
[1770952242366,13.72791421,79.065,79.021,1.04415154]
[1770952242562,13.72791421,79.065,79.008,4.61729252]
[1770952242563,37.5,79.067,79.031,1.04415154]
[1770952242770,1.07998841,79.066,79.031,1.04415154]
[1770952243271,1.07998841,79.066,79.033,1.04415154]
[1770952243656,13.72768241,79.066,79.033,1.04415154]
[1770952243862,1.07998841,79.059,79.033,1.04415154]
[1770952246964,12.64805252,79.064,79.035,1.04415154]
[1770952247271,1.07998841,79.059,79.035,1.04415154]
[1770952247667,1.07998841,79.057,79.029,1.04415154]
[1770952250866,1.07998841,79.057,79.031,1.04415154]
[1770952254171,1.07998841,79.063,79.033,1.04415154]
[1770952254566,37.6,79.062,79.033,1.04415154]
[1770952257776,37.6,79.062,79.035,1.04415154]
[1770952257974,1.07998841,79.061,79.035,1.04415154]
[1770952258560,37.64,79.065,79.041,1.04415154]
[1770952258877,1.07998841,79.064,79.041,1.04415154]
[1770952259572,1.07998841,79.064,79.042,13.69565327]
[1770952259757,1.07998841,79.064,79.042,12.65150173]
[1770952259961,1.07998841,79.064,79.043,1.04415154]
[1770952260576,1.09958634,79.063,79.043,1.04415154]
[1770952261459,1.09958634,79.062,79.031,1.0167557]
[1770952261666,1.09958634,79.059,79.031,13.67001834]
[1770952262976,1.09958634,79.059,79.032,1.0167557]
[1770952263182,1.09958634,79.065,79.041,1.0167557]
[1770952265483,38.79958634,79.064,79.043,1.0167557]
[1770952265678,1.09958634,79.064,79.043,1.0167557]
[1770952265885,37.7,79.064,79.043,1.0167557]
[1770952266084,1.09958634,79.063,79.043,1.0167557]
[1770952266686,1.09958634,79.063,79.042,12.65150173]
[1770952266687,1.09958634,79.063,79.044,13.66793732]
[1770952267066,1.09958634,79.061,79.037,1.0167557]
[1770952267668,1.09958634,79.061,79.031,31.633015]
[1770952267669,1.09958634,79.061,79.032,12.65298793]
[1770952267879,37.72,79.06,79.033,1.0167557]
[1770952268986,37.74,79.061,79.041,1.0167557]
[1770952271780,37.74,79.061,79.042,1.0167557]
[1770952271990,38.83958634,79.061,79.042,1.0167557]
[1770952272668,1.09958634,79.06,79.043,12.65134167]
[1770952273275,1.09958634,79.06,79.036,1.0167557]
[1770952274090,1.09958634,79.06,79.038,1.0167557]
[1770952274476,37.74,79.061,79.038,1.0167557]
[1770952275195,37.74,79.061,79.04,1.0167557]
[1770952275987,38.83958634,79.061,79.04,1.0167557]
[1770952276195,1.09958634,79.06,79.04,1.0167557]
[1770952279999,38.95958634,79.06,79.04,1.0167557]
[1770952281698,37.88,79.065,79.042,1.0167557]
[1770952288605,37.88,79.065,79.04,3.94113738]
[1770952288606,1.09958634,79.089,79.051,1.0167557]
[1770952288808,1.09958634,79.095,79.071,1.0167557]
[1770952289309,37.98,79.094,79.071,1.0167557]
[1770952289509,39.07958634,79.094,79.071,1.0167557]
[1770952289814,39.07958634,79.094,79.073,1.0167557]
[1770952290006,1.09958634,79.093,79.073,1.0167557]
[1770952292692,1.09958634,79.093,79.075,1.07496543]